fUST/lending_fUST_20250727
["ID","MTS","AMOUNT","RATE_DAILY","PERIOD"]
[375151441,1753549844024,-460.0,0.00021258,2]
[375151442,1753549844033,-460.0,0.00021258,2]
[375151443,1753549844043,-460.0,0.00021258,2]
[375151444,1753549844053,-460.0,0.00021258,2]
[375151445,1753549844062,-460.0,0.00021258,2]
[375151446,1753549844072,-460.0,0.00021258,2]
[375151447,1753549844081,-986.28,0.00021258,2]
[375151448,1753549844090,-787.04,0.00021258,2]
[375151449,1753549844099,-460.0,0.00021258,2]
[375151450,1753549844108,-460.0,0.00021258,2]
[375151451,1753549844118,-460.0,0.00021258,2]
[375151452,1753549844128,-460.0,0.00021258,2]
[375151453,1753549844137,-460.0,0.00021258,2]
[375151454,1753549844147,-478.42,0.00021258,2]
[375151455,1753549844157,-460.0,0.00021258,2]
[375151456,1753549844168,-460.0,0.00021258,2]
[375151457,1753549844179,-477.02,0.00021258,2]
[375151458,1753549844189,-460.0,0.00021369,2]
[375151459,1753549844199,-1339.07,0.00021427,2]
[375151460,1753549844209,-469.67,0.00021427,2]
[375151461,1753549844219,-460.0,0.00021427,2]
[375151462,1753549844228,-507.03818832,0.00021427,2]
[375151463,1753549844238,-460.0,0.00021427,2]
[375151464,1753549844247,-312.33,0.00021435,2]
[375151465,1753549844257,-442.66134115,0.00021532,2]
[375151466,1753549844267,-460.0,0.00021532,2]
[375151467,1753549844277,-1960.74,0.00021532,2]
[375151468,1753549844287,-460.0,0.00021532,2]
[375151469,1753549844297,-460.0,0.00021532,2]
[375151470,1753549844307,-2021.29,0.00021532,2]
[375151471,1753549844317,-460.0,0.00021532,2]
[375151472,1753549844326,-205.43,0.00021532,2]
[375151473,1753549844335,-460.0,0.00021532,2]
[375151474,1753549844345,-460.0,0.00021532,2]
[375151475,1753549844355,-460.0,0.00021532,2]
[375151476,1753549844365,-460.0,0.00021532,2]
[375151477,1753549844374,-986.28,0.00021532,2]
[375151478,1753549844384,-787.04,0.00021532,2]
[375151479,1753549844393,-594.7788558,0.00021532,2]
[375151480,1753549844403,-460.0,0.00021532,2]
[375151481,1753549844412,-460.0,0.00021532,2]
[375151482,1753549844422,-460.0,0.00021532,2]
[375151483,1753549844432,-478.42,0.00021532,2]
[375151484,1753549844441,-460.0,0.00021532,2]
[375151485,1753549844451,-460.0,0.00021532,2]
[375151486,1753549844462,-460.0,0.00021532,2]
[375151487,1753549844472,-477.02,0.00021532,2]
[375151488,1753549844481,-460.0,0.00021643,2]
[375151489,1753549844491,-460.0,0.00021655,2]
[375151490,1753549844500,-1339.07,0.00021701,2]
[375151491,1753549844510,-469.67,0.00021701,2]
[375151492,1753549844520,-460.0,0.00021701,2]
[375151493,1753549844533,-460.0,0.00021701,2]
[375151494,1753549844543,-460.0,0.00021806,2]
[375151495,1753549844552,-1960.74,0.00021806,2]
[375151496,1753549844562,-460.0,0.00021806,2]
[375151497,1753549844573,-460.0,0.00021806,2]
[375151498,1753549844582,-2021.29,0.00021806,2]
[375151499,1753549844592,-460.0,0.00021806,2]
[375151500,1753549844602,-460.0,0.00021806,2]
[375151501,1753549844613,-460.0,0.00021806,2]
[375151502,1753549844624,-460.0,0.00021806,2]
[375151503,1753549844635,-460.0,0.00021806,2]
[375151504,1753549844644,-787.04,0.00021806,2]
[375151505,1753549844654,-986.28,0.00021806,2]
[375151506,1753549844663,-460.0,0.00021806,2]
[375151507,1753549844672,-460.0,0.00021806,2]
[375151508,1753549844682,-460.0,0.00021806,2]
[375151509,1753549844691,-478.42,0.00021806,2]
[375151510,1753549844701,-460.0,0.00021806,2]
[375151511,1753549844712,-460.0,0.00021806,2]
[375151512,1753549844722,-460.0,0.00021806,2]
[375151513,1753549844731,-477.02,0.00021806,2]
[375151514,1753549844740,-460.0,0.00021917,2]
[375151515,1753549844750,-14304.58062916,0.00021923,2]
[375151516,1753549844759,-1339.07,0.00021975,2]
[375151517,1753549844768,-469.67,0.00021975,2]
[375151518,1753549844778,-460.0,0.00021975,2]
[375151519,1753549844787,-460.0,0.00021975,2]
[375151520,1753549844797,-4745.19,0.00022,7]
[375151521,1753549844807,-869.21,0.00022,7]
[375151522,1753549844818,-23459.24,0.00022,2]
[375151523,1753549844827,-1366.54,0.00022,7]
[375151524,1753549844837,-151.0,0.00022,2]
[375151525,1753549844847,-236.0,0.00022,2]
[375151526,1753549844856,-588.45,0.0002208,2]
[375151527,1753549844865,-1960.74,0.0002208,2]
[375151528,1753549844964,-460.0,0.0002208,2]
[375151529,1753549844974,-460.0,0.0002208,2]
[375151530,1753549844983,-2021.29,0.0002208,2]
[375151531,1753549844994,-460.0,0.0002208,2]
[375151532,1753549845009,-460.0,0.0002208,2]
[375151533,1753549845018,-460.0,0.0002208,2]
[375151534,1753549845028,-460.0,0.0002208,2]
[375151535,1753549845038,-460.0,0.0002208,2]
[375151536,1753549845047,-787.04,0.0002208,2]
[375151537,1753549845057,-986.28,0.0002208,2]
[375151538,1753549845067,-460.0,0.0002208,2]
[375151539,1753549845076,-460.0,0.0002208,2]
[375151540,1753549845086,-460.0,0.0002208,2]
[375151541,1753549845096,-478.42,0.0002208,2]
[375151542,1753549845106,-460.0,0.0002208,2]
[375151543,1753549845115,-460.0,0.0002208,2]
[375151544,1753549845125,-460.0,0.0002208,2]
[375151545,1753549845134,-477.02,0.0002208,2]
[375151546,1753549845143,-460.0,0.00022191,2]
[375151547,1753549845153,-236.0,0.00022192,7]
[375151548,1753549845162,-1339.07,0.00022249,2]
[375151549,1753549845172,-469.67,0.00022249,2]
[375151550,1753549845182,-460.0,0.00022249,2]
[375151551,1753549845191,-460.0,0.00022249,2]
[375151552,1753549845201,-1960.74,0.00022354,2]
[375151553,1753549845210,-460.0,0.00022354,2]
[375151554,1753549845220,-460.0,0.00022354,2]
[375151555,1753549845229,-2021.29,0.00022354,2]
[375151556,1753549845239,-460.0,0.00022354,2]
[375151557,1753549845248,-460.0,0.00022354,2]
[375151558,1753549845258,-460.0,0.00022354,2]
[375151559,1753549845268,-460.0,0.00022354,2]
[375151560,1753549845278,-460.0,0.00022354,2]
[375151561,1753549845289,-787.04,0.00022354,2]
[375151562,1753549845298,-986.28,0.00022354,2]
[375151563,1753549845308,-154.13278373,0.00022354,2]
[375151564,1753549845317,-460.0,0.00022354,2]
[375151565,1753549845327,-460.0,0.00022354,2]
[375151566,1753549845338,-478.42,0.00022354,2]
[375151567,1753549845348,-460.0,0.00022354,2]
[375151568,1753549845358,-460.0,0.00022354,2]
[375151569,1753549845368,-460.0,0.00022354,2]
[375151570,1753549845378,-477.02,0.00022354,2]
[375151571,1753549845387,-24322.12931247,0.00022427,2]
[375151572,1753549845397,-1695.41,0.00022465,2]
[375151573,1753549845406,-460.0,0.00022465,2]
[375151574,1753549845416,-1339.07,0.00022523,2]
[375151575,1753549845426,-469.67,0.00022523,2]
[375151576,1753549845435,-460.0,0.00022523,2]
[375151577,1753549845445,-460.0,0.00022523,2]
[375151578,1753549845455,-1960.74,0.00022628,2]
[375151579,1753549845464,-496.95269013,0.00022628,2]
[375151580,1753549845474,-460.0,0.00022628,2]
[375151581,1753549845483,-2021.29,0.00022628,2]
[375151582,1753549845493,-460.0,0.00022628,2]
[375151583,1753549845502,-460.0,0.00022628,2]
[375151584,1753549845512,-460.0,0.00022628,2]
[375151585,1753549845521,-460.0,0.00022628,2]
[375151586,1753549845534,-460.0,0.00022628,2]
[375151587,1753549845543,-787.04,0.00022628,2]
[375151588,1753549845553,-986.28,0.00022628,2]
[375151589,1753549845563,-460.0,0.00022628,2]
[375151590,1753549845574,-460.0,0.00022628,2]
[375151591,1753549845583,-478.42,0.00022628,2]
[375151592,1753549845594,-518.78682023,0.00022628,2]
[375151593,1753549845605,-460.0,0.00022628,2]
[375151594,1753549845616,-460.0,0.00022628,2]
[375151595,1753549845626,-477.02,0.00022628,2]
[375151596,1753549845635,-407.0,0.00022691,2]
[375151597,1753549845645,-152.594285,0.00022724,2]
[375151598,1753549845658,-460.0,0.00022739,2]
[375151599,1753549845667,-1339.07,0.00022797,2]
[375151600,1753549845676,-469.67,0.00022797,2]
[375151601,1753549845686,-460.0,0.00022797,2]
[375151602,1753549845694,-1057.74,0.000228,2]
[375151603,1753549845704,-1960.74,0.00022902,2]
[375151604,1753549845713,-460.0,0.00022902,2]
[375151605,1753549845722,-2021.29,0.00022902,2]
[375151606,1753549845731,-460.0,0.00022902,2]
[375151607,1753549845740,-460.0,0.00022902,2]
[375151608,1753549845749,-787.04,0.00022902,2]
[375151609,1753549845759,-986.28,0.00022902,2]
[375151610,1753549845768,-460.0,0.00022902,2]
[375151611,1753549845777,-478.42,0.00022902,2]
[375151612,1753549845787,-460.0,0.00022902,2]
[375151613,1753549845796,-477.02,0.00022902,2]
[375151614,1753549845805,-160.0,0.00023,2]
[375151615,1753549845815,-460.0,0.00023013,2]
[375151616,1753549845824,-151.0,0.00023014,7]
[375151617,1753549845833,-236.0,0.00023014,7]
[375151618,1753549845843,-1339.07,0.00023071,2]
[375151619,1753549845852,-469.67,0.00023071,2]
[375151620,1753549845862,-460.0,0.00023071,2]
[375151621,1753549845871,-1960.74,0.00023176,2]
[375151622,1753549845881,-460.0,0.00023176,2]
[375151623,1753549845890,-2021.29,0.00023176,2]
[375151624,1753549845899,-460.0,0.00023176,2]
[375151625,1753549845908,-460.0,0.00023176,2]
[375151626,1753549845917,-787.04,0.00023176,2]
[375151627,1753549845926,-986.28,0.00023176,2]
[375151628,1753549845936,-460.0,0.00023176,2]
[375151629,1753549845946,-478.42,0.00023176,2]
[375151630,1753549845955,-460.0,0.00023176,2]
[375151631,1753549845965,-468.49,0.00023221,2]
[375151632,1753549845982,-460.0,0.00023287,2]
[375151633,1753549845991,-1339.07,0.00023345,2]
[375151634,1753549846000,-469.67,0.00023345,2]
[375151635,1753549846009,-460.0,0.00023345,2]
[375151636,1753549846019,-176.2641175,0.00023372,2]
[375151637,1753549846028,-1960.74,0.0002345,2]
[375151638,1753549846037,-460.0,0.0002345,2]
[375151639,1753549846045,-2021.29,0.0002345,2]
[375151640,1753549846054,-460.0,0.0002345,2]
[375151641,1753549846063,-460.0,0.0002345,2]
[375151642,1753549846073,-787.04,0.0002345,2]
[375151643,1753549846082,-986.28,0.0002345,2]
[375151644,1753549846091,-460.0,0.0002345,2]
[375151645,1753549846100,-478.42,0.0002345,2]
[375151646,1753549846109,-500.0,0.000235,2]
[375151647,1753549846118,-460.0,0.00023561,2]
[375151648,1753549846128,-1339.07,0.00023619,2]
[375151649,1753549846136,-469.67,0.00023619,2]
[375151650,1753549846145,-460.0,0.00023619,2]
[375151651,1753549846155,-1960.74,0.00023724,2]
[375151652,1753549846173,-192.61,0.00023724,2]
[375151653,1753549846185,-2021.29,0.00023724,2]
[375151654,1753549846194,-460.0,0.00023724,2]
[375151655,1753549846204,-460.0,0.00023724,2]
[375151656,1753549846213,-787.04,0.00023724,2]
[375151657,1753549846222,-986.28,0.00023724,2]
[375151658,1753549846231,-460.0,0.00023724,2]
[375151659,1753549846240,-478.42,0.00023724,2]
[375151660,1753549846249,-23459.24,0.000238,2]
[375151661,1753549846257,-152.594285,0.00023812,2]
[375151662,1753549846267,-460.0,0.00023835,2]
[375151663,1753549846276,-1339.07,0.00023893,2]
[375151664,1753549846285,-469.67,0.00023893,2]
[375151665,1753549846294,-460.0,0.00023893,2]
[375151666,1753549846303,-39390.5848579,0.00023988,2]
[375151667,1753549846313,-519.37150382,0.0002399,2]
[375151668,1753549846322,-1960.74,0.00023998,2]
[375151669,1753549846331,-2021.29,0.00023998,2]
[375151670,1753549846342,-460.0,0.00023998,2]
[375151672,1753549846351,-460.0,0.00023998,2]
[375151674,1753549846360,-787.04,0.00023998,2]
[375151676,1753549846370,-986.28,0.00023998,2]
[375151678,1753549846380,-460.0,0.00023998,2]
[375151679,1753549846389,-478.42,0.00023998,2]
[375151680,1753549846399,-419.23,0.00024,2]
[375151681,1753549846409,-231.25662632,0.00024,7]
[375151682,1753549846419,-4745.19,0.00024,7]
[375151683,1753549846428,-869.21,0.00024,7]
[375151684,1753549846438,-1366.54,0.00024,7]
[375151685,1753549846447,-160.0,0.00024,7]
[375151686,1753549846458,-520.52,0.00024089,3]
[375151687,1753549846468,-460.0,0.00024109,2]
[375151688,1753549846477,-236.887685,0.00024155,8]
[375151689,1753549846487,-240.0,0.00024164,7]
[375151690,1753549846496,-1339.07,0.00024167,2]
[375151691,1753549846506,-469.67,0.00024167,2]
[375151692,1753549846515,-460.0,0.00024167,2]
[375151693,1753549846524,-520.52,0.00024189,5]
[375151694,1753549846538,-584.1906883,0.00024239,2]
[375151695,1753549846548,-1960.74,0.00024272,2]
[375151696,1753549846558,-2021.29,0.00024272,2]
[375151697,1753549846567,-460.0,0.00024272,2]
[375151698,1753549846577,-460.0,0.00024272,2]
[375151699,1753549846588,-787.04,0.00024272,2]
[375151700,1753549846597,-986.28,0.00024272,2]
[375151701,1753549846608,-269.19,0.00024272,2]
[375151702,1753549846618,-478.42,0.00024272,2]
[375151703,1753549846628,-520.52,0.00024289,5]
[375151704,1753549846638,-1000.0,0.000243,2]
[375151705,1753549846647,-460.0,0.00024383,2]
[375151706,1753549846657,-520.52,0.00024389,3]
[375151707,1753549846666,-1339.07,0.00024441,2]
[375151708,1753549846676,-469.67,0.00024441,2]
[375151709,1753549846685,-460.0,0.00024441,2]
[375151710,1753549846695,-520.52,0.00024489,7]
[375151711,1753549846705,-168.0,0.00024506,2]
[375151712,1753549846715,-800.0,0.00024508,2]
[375151713,1753549846724,-1960.74,0.00024546,2]
[375151714,1753549846734,-2021.29,0.00024546,2]
[375151715,1753549846746,-534.85,0.00024546,2]
[375151716,1753549846757,-471.28,0.00024546,2]
[375151717,1753549846766,-787.04,0.00024546,2]
[375151718,1753549846776,-986.28,0.00024546,2]
[375151719,1753549846785,-478.42,0.00024546,2]
[375151720,1753549846795,-520.56,0.00024589,6]
[375151721,1753549846805,-4411.64068738,0.000246,2]
[375151722,1753549846814,-800.0,0.00024604,2]
[375151723,1753549846824,-5000.0,0.00024655,3]
[375151724,1753549846833,-811.43970814,0.00024657,2]
[375151725,1753549846845,-460.0,0.00024657,2]
[375151726,1753549846855,-500.0,0.00024658,2]
[375151727,1753549846866,-151.15357884,0.00024658,2]
[375151728,1753549846878,-265.06477486,0.00024658,2]
[375151729,1753549846888,-151.0,0.00024658,2]
[375151730,1753549846897,-500.0,0.00024658,2]
[375151731,1753549846906,-151.0,0.00024658,2]
[375151732,1753549846917,-500.0,0.00024658,2]
[375151733,1753549846927,-151.0,0.00024658,2]
[375151734,1753549846937,-151.0,0.00024658,2]
[375151735,1753549846946,-151.0,0.00024658,2]
[375151736,1753549846955,-211.12151948,0.00024658,2]
[375151737,1753549846964,-151.0,0.00024658,2]
[375151738,1753549846975,-500.0,0.00024658,2]
[375151739,1753549846984,-160.0,0.0002466,3]
[375151740,1753549846994,-231.25662632,0.000247,3]
[375151741,1753549847003,-839.454303,0.000247,3]
[375151742,1753549847013,-370000.0,0.000247,2]
[375151743,1753549847023,-152.594285,0.000247,3]
[375151744,1753549847032,-11028.08412594,0.000247,3]
[375151745,1753549847132,-1601.7506642,0.000247,3]
[375151746,1753549847142,-4411.64068733,0.00024705,2]
[375151747,1753549847152,-1339.07,0.00024715,2]
[375151748,1753549847162,-469.67,0.00024715,2]
[375151749,1753549847171,-460.0,0.00024715,2]
[375151750,1753549847180,-800.0,0.00024721,2]
[375151751,1753549847189,-800.0,0.00024737,2]
[375151752,1753549847198,-800.0,0.00024758,2]
[375151753,1753549847208,-65017.12251599,0.000248,7]
[375151754,1753549847217,-150.0,0.000248,5]
[375151755,1753549847226,-1000.0,0.000248,2]
[375151756,1753549847235,-16999.9325692,0.000248,2]
[375151757,1753549847245,-4411.64068733,0.00024809,2]
[375151758,1753549847255,-14304.58062916,0.00024814,2]
[375151759,1753549847355,-1960.74,0.0002482,2]
[375151760,1753549847365,-2021.29,0.0002482,2]
[375151761,1753549847374,-787.04,0.0002482,2]
[375151762,1753549847384,-986.28,0.0002482,2]
[375151763,1753549847393,-478.42,0.0002482,2]
[375151764,1753549847404,-1540.94636212,0.0002488,7]
[375151765,1753549847414,-152.594285,0.000249,2]
[375151766,1753549847423,-151.0,0.000249,7]
[375151767,1753549847433,-745788.111612,0.000249,2]
[375151768,1753549847443,-4411.64068733,0.00024914,2]
[375151769,1753549847453,-460.0,0.00024931,2]
[375151770,1753549847463,-500.0,0.00024932,2]
[375151771,1753549847472,-151.0,0.00024932,2]
[375151772,1753549847481,-500.0,0.00024932,2]
[375151773,1753549847491,-500.0,0.00024932,2]
[375151774,1753549847500,-151.0,0.00024932,2]
[375151775,1753549847509,-151.0,0.00024932,2]
[375151776,1753549847519,-151.0,0.00024932,2]
[375151777,1753549847530,-500.0,0.00024932,2]
[375151778,1753549847543,-3107.38094793,0.0002495,2]
[375151779,1753549847552,-852.91,0.00024986,7]
[375151780,1753549847562,-1339.07,0.00024989,2]
[375151781,1753549847571,-469.67,0.00024989,2]
[375151782,1753549847581,-324.39,0.00024989,2]
[375151783,1753549847591,-10070.30736838,0.0002499,5]
[375151784,1753549847600,-1380.89738303,0.00024999,7]
[375151785,1753549847612,-1063.92689103,0.00025,2]
[375151786,1753549847621,-16003.61344135,0.00025,2]
[375151787,1753549847631,-93176.2476789,0.00025,2]
[375151788,1753549847641,-2619.72352805,0.00025,2]
[375151789,1753549847650,-207.73841059,0.00025,2]
[375151790,1753549847660,-10364.0,0.00025,2]
[375151791,1753549847675,-358.61637497,0.00025,2]
[375151792,1753549847685,-500.0,0.00025,2]
[375151793,1753549847695,-83638.41979688,0.00025,2]
[375151794,1753549847706,-2037.91335422,0.00025,14]
[375151795,1753549847715,-2689.41546041,0.00025,7]
[375151796,1753549847725,-2631.53706006,0.00025,10]
[375151797,1753549847734,-2646.70481958,0.00025,10]
[375151798,1753549847744,-25188.41471773,0.00025,30]
[375151799,1753549847754,-162.24517131,0.00025,5]
[375151800,1753549847763,-1013.76274007,0.00025,10]
[375151801,1753549847773,-160.49723082,0.00025,5]
[375151802,1753549847783,-215.9757969,0.00025,30]
[375151803,1753549847793,-214.8008262,0.00025,30]
[375151804,1753549847803,-231.25662632,0.00025,10]
[375151805,1753549847812,-1981.099022,0.00025,5]
[375151806,1753549847821,-160.0,0.00025,30]
[375151807,1753549847830,-312.16666667,0.00025,30]
[375151808,1753549847839,-526.41699184,0.00025,30]
[375151809,1753549847851,-624.66,0.00025007,2]
[375151810,1753549847861,-4411.64068733,0.00025019,2]
[375151811,1753549847870,-852.91,0.00025086,5]
[375151812,1753549847880,-1960.74,0.00025094,2]
[375151813,1753549847889,-2021.29,0.00025094,2]
[375151814,1753549847898,-787.04,0.00025094,2]
[375151815,1753549847907,-986.28,0.00025094,2]
[375151816,1753549847917,-478.42,0.00025094,2]
[375151817,1753549847926,-4411.64068733,0.00025123,2]
[375151818,1753549847935,-852.91,0.00025186,6]
[375151819,1753549847944,-23459.24,0.000252,2]
[375151820,1753549847954,-1695.41,0.00025205,4]
[375151821,1753549847964,-230.73,0.00025205,2]
[375151822,1753549847973,-500.0,0.00025206,2]
[375151823,1753549847983,-151.0,0.00025206,2]
[375151824,1753549847992,-500.0,0.00025206,2]
[375151825,1753549848002,-500.0,0.00025206,2]
[375151826,1753549848011,-151.0,0.00025206,2]
[375151827,1753549848020,-151.0,0.00025206,2]
[375151828,1753549848030,-500.0,0.00025206,2]
[375151829,1753549848039,-4411.64068733,0.00025228,2]
[375151830,1753549848050,-152.594285,0.00025245,3]
[375151831,1753549848059,-1339.07,0.00025263,2]
[375151832,1753549848068,-469.67,0.00025263,2]
[375151833,1753549848077,-852.91,0.00025286,3]
[375151834,1753549848087,-9112.39,0.000253,10]
[375151835,1753549848098,-179.97,0.000253,10]
[375151836,1753549848108,-4745.19,0.000253,7]
[375151837,1753549848118,-869.21,0.000253,7]
[375151838,1753549848127,-4411.64068733,0.00025333,2]
[375151839,1753549848137,-152.594285,0.00025368,4]
[375151840,1753549848147,-1960.74,0.00025368,2]
[375151841,1753549848156,-2021.29,0.00025368,2]
[375151842,1753549848166,-787.04,0.00025368,2]
[375151843,1753549848178,-986.28,0.00025368,2]
[375151844,1753549848187,-478.42,0.00025368,2]
[375151845,1753549848198,-852.91,0.00025386,7]
[375151846,1753549848208,-1366.54,0.000254,7]
[375151847,1753549848217,-152.594285,0.00025425,30]
[375151848,1753549848227,-4411.64068733,0.00025437,2]
[375151849,1753549848237,-584.06955468,0.0002548,2]
[375151850,1753549848247,-198.0,0.0002548,2]
[375151851,1753549848258,-500.0,0.0002548,2]
[375151852,1753549848268,-500.0,0.0002548,2]
[375151853,1753549848278,-151.0,0.0002548,2]
[375151854,1753549848287,-151.0,0.0002548,2]
[375151855,1753549848297,-500.0,0.0002548,2]
[375151856,1753549848307,-182.31621217,0.00025486,2]
[375151857,1753549848317,-852.91,0.00025486,2]
[375151858,1753549848326,-11500.0,0.000255,7]
[375151859,1753549848335,-605.36441429,0.00025514,14]
[375151860,1753549848346,-182.31621217,0.00025521,2]
[375151861,1753549848356,-1339.11172504,0.00025536,2]
[375151862,1753549848366,-469.76,0.00025536,2]
[375151863,1753549848375,-1394.60927801,0.00025542,2]
[375151864,1753549848389,-3017.03140932,0.00025542,2]
[375151865,1753549848398,-176.2641175,0.00025542,2]
[375151866,1753549848409,-182.31621217,0.00025556,2]
[375151867,1753549848420,-504.39738115,0.00025585,2]
[375151868,1753549848431,-112.79089379,0.00025586,3]
[375151869,1753549848443,-740.11910621,0.00025586,3]
[375151870,1753549848453,-3374.95704635,0.000256,5]
[375151871,1753549848465,-1446.07072264,0.000256,5]
[375151872,1753549848476,-2345.83880594,0.000256,5]
[375151873,1753549848548,-595.57044424,0.00019032,2]
[375151874,1753549848559,-477.02,0.00023176,2]
[375151875,1753549848568,-414.32,0.0002345,2]
[375151876,1753549848579,-477.02,0.0002345,2]
[375151877,1753549848588,-477.02,0.00023724,2]
[375151878,1753549848598,-21881.17886823,0.000256,5]
[375151879,1753549848610,-3488.47122906,0.000256,5]
[375151881,1753549867310,159.906695,0.00013699,2]
[375151883,1753550441001,183.29712128,0.00018,2]
[375151885,1753550585162,4254.69504114,0.00018,2]
[375151886,1753550703928,1987.15816644,0.00018,2]
[375151887,1753550742126,-304.604969,0.00018075,2]
[375151888,1753550742153,-500.0,0.00018624,2]
[375151889,1753550742179,-428.82107626,0.00018624,2]
[375151890,1753550742203,-300.0,0.00018624,2]
[375151891,1753550742224,-244.0,0.00018624,2]
[375151892,1753550742246,-269.0,0.00018624,2]
[375151893,1753550742270,-300.0,0.00018624,2]
[375151894,1753550742293,-187.0,0.00018624,2]
[375151895,1753550742316,-1200.0,0.00018624,2]
[375151896,1753550742339,-221.14298049,0.00018978,2]
[375151899,1753550831091,-1798.31347457,0.00018978,2]
[375151900,1753550849076,-1918.90660999,0.00018923,2]
[375151901,1753550852145,-399.77847963,0.00018923,2]
[375151903,1753550880446,159.906695,0.00013699,2]
[375151928,1753551032418,-3400.56195945,0.00018873,2]
[375151931,1753551032441,-279.99979859,0.00018873,2]
[375151943,1753551038392,-2547.39784985,0.00018873,2]
[375151944,1753551038405,-302.69733596,0.000189,2]
[375151945,1753551038415,-783.0,0.00018972,2]
[375151946,1753551038425,-4694.47921623,0.00018973,2]
[375151947,1753551038434,-162.4665568,0.00018973,2]
[375151948,1753551038444,-615.13701769,0.00018986,2]
[375151949,1753551038453,-615.13701769,0.00019008,2]
[375151950,1753551038465,-160.0,0.00019022,2]
[375151951,1753551038475,-834.26,0.00019023,3]
[375151952,1753551038485,-615.13701769,0.0001903,2]
[375151953,1753551038494,-354.2093931,0.00019032,2]
[375151954,1753551038504,-342655.84718083,0.00019033,2]
[375151956,1753551038513,-615.13701769,0.00019051,2]
[375151957,1753551038522,-615.13701769,0.00019073,2]
[375151958,1753551038531,-265.02204745,0.00019086,6]
[375151959,1753551038541,-302.66707833,0.00019089,2]
[375151960,1753551038551,-513448.73117872,0.0001915,2]
[375151961,1753551038560,-225.08456515,0.00019173,2]
[375151962,1753551038569,-503.40990452,0.00019173,2]
[375151963,1753551038579,-500.66252856,0.00019173,2]
[375151964,1753551038589,-501.60870649,0.00019173,2]
[375151965,1753551038599,-456.56678105,0.00019173,2]
[375151966,1753551038608,-5876.78974053,0.00019173,2]
[375151967,1753551038618,-1000.0,0.00019178,2]
[375151968,1753551038627,-460.0,0.00019178,2]
[375151969,1753551038637,-460.0,0.00019178,2]
[375151970,1753551038646,-460.0,0.00019178,2]
[375151971,1753551038658,-460.0,0.00019178,2]
[375151972,1753551038668,-500.0,0.00019178,2]
[375151973,1753551038678,-460.0,0.00019178,2]
[375151974,1753551038688,-460.0,0.00019178,2]
[375151975,1753551038698,-460.0,0.00019178,2]
[375151976,1753551038708,-460.0,0.00019178,2]
[375151977,1753551038717,-460.0,0.00019178,2]
[375151978,1753551038727,-460.0,0.00019178,2]
[375151979,1753551038736,-530.05406527,0.00019178,2]
[375151980,1753551038746,-418.39353883,0.00019178,2]
[375151981,1753551038756,-460.0,0.00019178,2]
[375151982,1753551038766,-302.43348805,0.00019178,2]
[375151983,1753551038776,-460.0,0.00019178,2]
[375151984,1753551038785,-460.0,0.00019178,2]
[375151985,1753551038795,-460.0,0.00019178,2]
[375151986,1753551038803,-460.0,0.00019178,2]
[375151987,1753551038813,-460.0,0.00019178,2]
[375151988,1753551038822,-460.0,0.00019178,2]